bitfinex-derivatives/quotes_ETHF0:USTF0_20250903
["timestamp","ask_amount","ask_price","bid_price","bid_amount"]
[1756901687269,0.4214,4367.5,4366.4,0.18471612]
[1756901687270,0.4029,4366.2,4366.1,2.08338812]
[1756901687569,0.6968,4366.2,4366.1,0.0614]
[1756901687771,0.6968,4366.2,4366.1,40.8614]
[1756901687958,1.28023361,4366.2,4366.1,40.8614]
[1756901688467,0.115,4366.5,4366.4,0.1612]
[1756901688772,0.8118,4366.5,4366.4,1.19941026]
[1756901691673,0.8118,4366.5,4366.4,1.00405571]
[1756901693565,0.6034,4366.5,4366.4,1.04245571]
[1756901693769,0.4089,4366.5,4366.4,1.04245571]
[1756901695483,0.2939,4366.5,4366.4,1.04245571]
[1756901695679,0.2939,4366.5,4366.4,0.1612]
[1756901695870,0.6034,4366.5,4366.4,1.00405571]
[1756901696179,0.6034,4366.5,4366.4,1.23805571]
[1756901696972,0.4089,4366.5,4366.4,1.27645571]
[1756901697372,0.8118,4366.5,4366.4,0.0614]
[1756901697566,0.6034,4366.5,4366.4,1.27645571]
[1756901697873,0.4089,4366.5,4366.4,1.27645571]
[1756901698077,0.2939,4366.9,4366.4,1.27645571]
[1756901698279,0.4884,4366.9,4366.8,0.1228]
[1756901698476,0.6968,4366.9,4366.8,0.1228]
[1756901699279,0.6968,4366.9,4366.8,1.00405571]
[1756901700789,0.6968,4366.9,4366.8,0.94265571]
[1756901702972,0.6968,4366.9,4366.8,0.88125571]
[1756901704484,0.6968,4366.9,4366.8,0.94265571]
[1756901705383,0.6968,4366.9,4366.8,1.00405571]
[1756901705782,0.2939,4366.9,4366.8,1.04245571]
[1756901705987,0.115,4367.0,4366.8,1.04245571]
[1756901706180,0.4089,4367.0,4366.9,0.0384]
[1756901706380,0.4089,4367.0,4366.9,0.1612]
[1756901706680,0.4089,4367.0,4366.9,40.9612]
[1756901706879,0.2939,4367.4,4367.3,0.1228]
[1756901707081,0.2939,4367.4,4367.3,1.00405571]
[1756901707784,0.2939,4367.4,4367.3,1.04245571]
[1756901707982,0.2939,4367.7,4367.6,0.1228]
[1756901708281,0.2939,4367.7,4367.6,1.04245571]
[1756901709785,0.4884,4367.7,4367.6,1.00405571]
[1756901713490,0.685,4367.7,4367.6,1.00405571]
[1756901717287,0.4884,4367.7,4367.6,1.00405571]
[1756901717484,0.2919,4368.0,4367.9,0.1226]
[1756901717689,0.2919,4368.0,4367.9,2.15741142]
[1756901718195,0.2919,4368.0,4367.9,42.95741142]
[1756901718491,0.115,4368.5,4367.9,43.14805142]
[1756901718694,0.6116,4368.5,4368.4,1.00385571]
[1756901719195,0.8082,4368.5,4368.4,1.00385571]
[1756901719493,0.8082,4368.5,4368.4,41.80385571]
[1756901722195,0.8082,4368.5,4368.4,40.9226]
[1756901722391,0.8082,4368.5,4368.4,41.80385571]
[1756901723193,0.6116,4368.5,4368.4,41.80385571]
[1756901726794,0.6116,4368.5,4368.4,41.84215571]
[1756901727198,0.6116,4368.5,4368.4,41.80385571]
[1756901729205,0.6116,4368.5,4368.4,41.84245571]
[1756901730404,0.4069,4368.5,4368.4,41.84245571]
[1756901735011,0.4069,4368.5,4368.4,41.80385571]
[1756901735610,0.4069,4368.5,4368.4,41.84245571]
[1756901739208,0.4069,4368.5,4368.4,40.8]
[1756901739514,0.4069,4368.5,4367.1,2.02198812]
[1756901739515,0.8083,4367.5,4367.4,0.0618]
[1756901739806,0.8083,4367.5,4367.4,0.88125571]
[1756901741314,0.8083,4367.5,4367.4,41.68125571]
[1756901743014,1.38941501,4367.5,4367.2,0.88125571]
[1756901743211,0.7193,4367.3,4367.2,0.88125571]
[1756901743412,0.7193,4367.3,4367.2,0.94245571]
[1756901743614,0.7193,4367.3,4367.2,41.74245571]
[1756901743808,0.3154,4367.3,4367.2,41.74245571]
[1756901744112,0.3154,4367.3,4367.2,41.78075571]
[1756901744310,0.3154,4367.3,4367.2,41.74245571]
[1756901744715,0.3154,4367.3,4367.2,40.8612]
[1756901744916,0.3154,4367.3,4367.2,41.74245571]
[1756901745918,0.3154,4367.3,4367.2,40.8]
[1756901746116,0.4039,4367.2,4367.1,0.88125571]
[1756901746409,0.7193,4367.2,4367.1,0.88125571]
[1756901746609,0.7193,4367.2,4367.1,41.68125571]
[1756901747414,0.7193,4367.2,4367.1,0.94245571]
[1756901748718,0.4039,4367.2,4366.7,40.8]
[1756901748924,0.4039,4366.8,4366.7,41.68125571]
[1756901749125,0.7193,4366.8,4366.7,41.68125571]
[1756901750314,0.7193,4366.8,4366.7,0.94245571]
[1756901753227,0.7193,4366.8,4366.7,1.00365571]
[1756901753426,0.7193,4366.8,4366.7,1.19871375]
[1756901754030,0.521,4366.8,4366.7,1.19871375]
[1756901754827,0.3154,4367.4,4366.8,0.0383]
[1756901755133,0.3154,4367.4,4366.7,5.07631375]
[1756901755134,0.3154,4367.4,4367.3,1.23701375]
[1756901755525,0.115,4368.5,4367.3,45.99871375]
[1756901755825,0.6361,4368.0,4367.9,1.19871375]
[1756901756027,0.8344,4368.0,4367.9,0.1224]
[1756901757124,0.6361,4368.0,4367.9,1.19871375]
[1756901757525,0.4305,4368.0,4367.9,1.23701375]
[1756901760532,0.3154,4368.0,4367.9,1.23701375]
[1756901760831,0.4373,4368.0,4367.9,1.23701375]
[1756901761229,0.4373,4368.0,4367.9,1.19871375]
[1756901761430,0.6429,4368.0,4367.9,1.19871375]
[1756901762433,0.4373,4368.0,4367.9,1.23701375]
[1756901762828,0.4373,4368.0,4367.9,0.1607]
[1756901763030,0.4304,4368.5,4368.0,0.0383]
[1756901763231,0.3154,4368.5,4368.4,1.23701375]
[1756901763432,0.3275,4369.5,4369.4,0.0612]
[1756901763639,0.5258,4369.5,4369.4,1.13751375]
[1756901764031,0.8412,4369.5,4369.4,1.13751375]
[1756901765339,0.8412,4369.5,4369.3,1.07631375]
[1756901765534,0.5258,4369.5,4369.3,1.07631375]
[1756901765839,0.7193,4369.4,4369.3,1.13751375]
[1756901770640,0.7193,4369.4,4369.3,1.19871375]
[1756901771435,0.521,4369.4,4369.3,1.19871375]
[1756901771635,0.7193,4369.4,4369.3,1.19871375]
[1756901772237,0.3154,4369.4,4369.3,1.19871375]
[1756901772542,0.3154,4369.4,4369.3,1.23681375]
[1756901772942,0.5129,4369.4,4369.3,1.19871375]
[1756901773245,0.3154,4369.4,4369.3,1.23681375]
[1756901773646,0.5129,4369.4,4369.3,1.19871375]
[1756901774734,0.3004,4369.3,4369.0,40.8]
[1756901775039,0.6198,4369.5,4369.4,0.1218]
[1756901775342,0.8303,4369.5,4369.4,0.1218]
[1756901775646,0.8303,4369.5,4369.4,40.9218]
[1756901779447,0.8303,4369.5,4369.4,0.1218]
[1756901779949,0.4223,4369.5,4369.4,0.1599]
[1756901782751,0.6198,4369.5,4369.4,0.1218]
[1756901782943,0.8303,4369.5,4369.4,1.19811375]
[1756901783351,0.4223,4369.5,4369.4,1.19811375]
[1756901783651,0.8303,4369.5,4369.4,1.13721375]
[1756901785143,1.41133508,4369.5,4369.4,1.13721375]
[1756901785545,1.41133508,4369.5,4369.4,1.19811375]
[1756901786549,7.96378625,4369.0,4368.5,0.41192]
[1756901786750,7.96378625,4369.0,4368.9,1.07631375]
[1756901787054,8.38768625,4369.0,4368.9,1.30931375]
[1756901787553,8.38768625,4369.0,4368.9,42.10931375]
[1756901789445,8.26418625,4369.0,4368.9,42.10931375]
[1756901791252,7.96378625,4369.0,4368.9,42.10931375]
[1756901791450,0.3004,4369.9,4368.9,46.52119375]
[1756901791655,0.88178135,4369.8,4368.9,41.033]
[1756901791850,0.58138135,4369.7,4368.9,41.033]
[1756901792053,0.1235,4369.5,4368.9,41.033]
[1756901792458,0.3004,4369.6,4368.9,41.44488]
[1756901792853,0.3004,4369.6,4369.5,1.07631375]
[1756901793156,0.3004,4369.6,4369.5,1.30931375]
[1756901793357,0.88226238,4369.6,4369.5,1.30931375]
[1756901793552,0.1235,4369.0,4368.9,40.8]
[1756901793759,0.4239,4369.0,4368.9,42.10931375]
[1756901794252,0.3004,4369.0,4368.9,42.10931375]
[1756901794454,0.3004,4369.4,4368.9,42.10931375]
[1756901794654,0.1235,4369.5,4368.9,42.10931375]
[1756901794854,0.1975,4369.4,4369.0,0.233]
[1756901795050,0.3004,4369.4,4369.0,0.233]
[1756901795354,0.3004,4369.3,4368.9,41.87631375]
[1756901795559,0.1235,4369.5,4368.9,41.87631375]
[1756901795761,0.4979,4369.4,4369.0,0.233]
[1756901796153,0.1975,4369.4,4368.9,41.87631375]
[1756901796354,0.321,4369.5,4369.0,0.233]
[1756901796558,0.4979,4369.4,4369.0,0.233]
[1756901796760,0.4979,4369.4,4369.3,1.07631375]
[1756901796961,0.4979,4369.4,4369.3,1.30931375]
[1756901797554,0.1235,4369.0,4368.9,40.8]
[1756901797759,0.4239,4369.0,4368.9,42.10931375]
[1756901801565,0.5005,4369.5,4369.4,0.378]
[1756901801866,1.32029545,4369.5,4369.4,1.45431375]
[1756901803957,0.1219,4370.0,4369.9,0.378]
[1756901803958,0.4989,4370.0,4369.9,0.378]
[1756901804167,0.377,4370.0,4369.9,1.80541375]
[1756901804354,0.7635,4370.0,4369.9,1.80541375]
[1756901804554,0.7635,4370.0,4369.9,42.48731375]
[1756901805062,0.7635,4370.0,4369.9,42.29831375]
[1756901806264,0.7635,4370.0,4369.9,42.06531375]
[1756901806465,0.7635,4370.0,4369.9,42.29831375]
[1756901807161,0.5259,4370.0,4369.9,42.41641375]
[1756901807459,0.5259,4370.0,4369.9,42.29831375]
[1756901807658,0.5259,4370.0,4369.9,42.06531375]
[1756901807864,0.5259,4370.0,4369.9,40.8]
[1756901812573,0.8425,4369.2,4369.1,0.378]
[1756901812766,0.4655,4369.2,4369.0,1.07631375]
[1756901812972,0.377,4369.1,4369.0,1.07631375]
[1756901813173,0.8425,4369.1,4369.0,1.07631375]
[1756901813466,0.8425,4369.1,4369.0,0.8802424]
[1756901816672,0.8425,4369.1,4369.0,1.0692424]
[1756901818666,0.9914,4368.5,4368.1,0.8802424]
[1756901818867,0.6144,4368.0,4367.9,1.0692424]
[1756901819065,0.3865,4368.0,4367.9,1.2582424]
[1756901819264,0.96437545,4368.0,4367.9,1.3763424]
[1756901819459,0.7635,4368.0,4367.9,1.3763424]
[1756901819674,1.34137722,4368.0,4367.9,1.3763424]
[1756901819873,1.34137722,4368.0,4367.9,1.2582424]
[1756901820473,1.56927722,4368.0,4367.9,1.2582424]
[1756901821165,1.56927722,4368.0,4367.9,1.0692424]
[1756901821368,1.56927722,4368.0,4367.9,0.8802424]
[1756901821569,0.9914,4368.0,4367.9,0.8802424]
[1756901821964,0.9914,4368.0,4367.9,1.2582424]
[1756901822474,0.377,4368.4,4368.3,0.378]
[1756901822667,0.6146,4368.4,4368.3,1.2582424]
[1756901823068,0.8425,4368.4,4368.3,1.2582424]
[1756901825574,0.8425,4368.4,4368.3,1.0692424]
[1756901826168,0.7635,4368.0,4367.9,0.378]
[1756901826371,0.9914,4368.0,4367.4,40.8]
[1756901826563,0.5259,4367.5,4367.4,40.8]
[1756901826767,0.5259,4367.5,4367.4,41.7983424]
[1756901828274,0.5259,4367.5,4367.4,41.6802424]
[1756901830275,0.5259,4367.5,4367.4,41.7983424]
[1756901832478,0.377,4367.5,4367.4,41.7983424]
[1756901833178,0.1489,4368.0,4367.4,41.7983424]
[1756901833480,0.6262,4368.0,4367.9,1.2326424]
[1756901833979,0.9813,4368.0,4367.9,1.0564424]
[1756901834180,0.9813,4368.0,4367.9,0.8802424]
[1756901834780,0.5037,4367.5,4367.4,40.8]
[1756901835874,0.5037,4367.5,4367.4,41.7903424]
[1756901837581,0.3794,4368.0,4367.9,0.3524]
[1756901837781,0.3794,4368.0,4367.9,1.2326424]
[1756901838183,0.7345,4368.0,4367.9,1.2326424]
[1756901839279,0.9813,4368.0,4367.9,1.2326424]
[1756901840989,0.7345,4368.0,4367.9,1.3427424]
[1756901841389,0.7345,4368.0,4367.9,2.2229848]
[1756901842189,0.504,4368.0,4367.9,2.2229848]
[1756901842885,0.1489,4368.5,4368.0,0.1101]
[1756901843087,0.504,4368.5,4368.4,1.3427424]
[1756901843293,0.7345,4368.5,4368.4,1.2326424]
[1756901843683,0.7345,4368.5,4368.4,1.3427424]
[1756901844089,0.1486,4369.5,4368.4,1.3427424]
[1756901844392,0.3551,4368.9,4368.8,0.4625]
[1756901844798,0.5856,4369.4,4369.3,0.3524]
[1756901844998,1.16334544,4369.4,4369.3,0.3524]
[1756901845492,0.5856,4369.4,4369.3,2.1128848]
[1756901845698,0.5856,4369.4,4369.3,2.2229848]
[1756901846098,0.3551,4369.4,4369.3,2.2229848]
[1756901846398,0.1486,4370.0,4369.8,0.3524]
[1756901846598,0.93417902,4369.9,4369.8,0.3524]
[1756901846798,1.41147902,4369.9,4369.8,0.3524]
[1756901847499,1.16467902,4369.9,4369.8,0.4625]
[1756901847797,0.5856,4369.9,4369.8,1.3427424]
[1756901848299,0.5856,4369.9,4369.8,1.2326424]
[1756901849500,0.5856,4369.9,4369.8,1.3358424]
[1756901850402,0.3551,4369.9,4369.8,1.3358424]
[1756901850803,0.3551,4370.4,4370.3,0.3302]
[1756901851103,0.3551,4370.4,4370.3,1.2104424]
[1756901851300,0.3551,4370.4,4370.3,42.0104424]
[1756901851500,0.3551,4370.4,4370.3,42.1136424]
[1756901856900,0.3551,4370.9,4370.3,42.5604848]
[1756901857107,0.8324,4370.9,4370.8,0.8802424]
[1756901857408,0.8324,4370.9,4370.8,1.0453424]
[1756901857600,0.8324,4370.9,4370.8,0.8802424]
[1756901861200,0.4773,4370.9,4370.3,40.8]
[1756901861399,0.981,4370.5,4370.4,0.1651]
[1756901861609,0.981,4370.5,4370.4,0.3302]
[1756901862002,0.7342,4370.5,4370.4,0.4274]
[1756901862301,0.7342,4370.5,4370.4,0.3302]
[1756901862502,0.7342,4370.5,4370.4,1.2104424]
[1756901862805,0.3336,4371.4,4371.3,0.4756]
[1756901863019,0.3336,4371.4,4371.3,1.6016424]
[1756901863309,0.3336,4371.4,4371.3,1.8336424]
[1756901863910,0.3336,4371.4,4371.3,42.6336424]
[1756901864209,0.3336,4371.4,4371.3,42.4016424]
[1756901865909,0.5571,4371.9,4371.8,0.4756]
[1756901866215,0.5571,4371.9,4371.8,1.3558424]
[1756901866802,0.7921,4371.9,4371.8,1.3558424]
[1756901870314,0.7921,4371.9,4371.8,1.6016424]
[1756901870514,0.7921,4371.9,4371.8,1.3558424]
[1756901872105,0.5571,4371.9,4371.8,2.4818848]
[1756901872308,0.7921,4371.9,4371.8,1.3558424]
[1756901872511,0.7921,4371.9,4371.8,1.1110424]
[1756901873708,0.6013,4371.5,4371.4,0.2308]
[1756901873915,0.6013,4371.5,4371.3,0.8802424]
[1756901874207,1.37010354,4371.4,4371.3,0.8802424]
[1756901875413,1.37010354,4371.4,4370.5,0.2458]
[1756901875615,0.7921,4371.2,4371.1,1.07426039]
[1756901875819,0.4585,4370.9,4370.8,1.07426039]
[1756901876012,0.7921,4370.9,4370.8,1.07426039]
[1756901876417,1.37031604,4370.9,4370.2,0.2458]
[1756901876713,0.9349,4370.5,4370.4,0.4756]
[1756901876918,0.9349,4370.5,4370.4,0.2308]
[1756901877122,0.3336,4370.4,4369.2,0.2458]
[1756901877319,4.72088318,4370.5,4369.2,0.4778]
[1756901877320,0.3336,4370.2,4369.2,0.4778]
[1756901877618,0.7921,4369.9,4369.8,0.2308]
[1756901877818,1.37018318,4369.9,4369.8,1.30506039]
[1756901879122,1.37018318,4369.9,4369.8,1.54986039]
[1756901879716,0.3336,4369.9,4369.8,1.79566039]
[1756901879922,0.3336,4370.4,4370.3,0.4756]
[1756901880226,0.91193272,4370.4,4370.3,1.79566039]
[1756901880616,1.37043272,4370.4,4370.3,1.30506039]
[1756901880924,0.91193272,4370.4,4370.3,1.79566039]
[1756901881226,1.13543272,4370.4,4370.3,1.79566039]
[1756901881722,0.91193272,4370.4,4370.3,1.79566039]
[1756901882020,0.3336,4370.4,4370.3,1.79566039]
[1756901883525,0.5571,4370.4,4370.3,1.79566039]
[1756901886128,0.3336,4370.4,4370.3,1.79566039]
[1756901886527,0.7921,4370.4,4370.3,0.2308]
[1756901886829,0.7921,4370.4,4370.2,1.54986039]
[1756901886830,0.7921,4370.3,4370.2,1.54986039]
[1756901888334,0.7921,4370.3,4370.2,1.07426039]
[1756901888630,0.5571,4369.4,4368.6,5.165]
[1756901888836,0.5571,4369.4,4369.3,41.87426039]
[1756901889821,0.1428,4370.0,4369.4,0.2308]
[1756901890019,0.6999,4370.0,4369.9,1.54986039]
[1756901890221,0.6999,4370.0,4369.9,1.79566039]
[1756901890826,0.4764,4370.0,4369.9,1.79566039]
[1756901891028,0.3336,4370.0,4369.9,1.79566039]
[1756901891830,0.1428,4370.5,4370.4,0.4571]
[1756901891831,0.7234,4370.5,4370.4,0.4571]
[1756901892132,1.30161423,4370.5,4370.4,1.53136039]
[1756901892334,1.53151423,4370.5,4370.4,1.53136039]
[1756901892527,0.9533,4370.5,4370.4,1.53136039]
[1756901894032,0.9533,4370.5,4370.4,1.29586039]
[1756901894534,0.9533,4370.5,4370.4,1.07426039]
[1756901895931,0.9533,4370.5,4369.3,40.8]
[1756901896134,0.9505,4370.0,4369.9,1.29586039]
[1756901899739,0.9505,4370.0,4369.9,1.53136039]
[1756901900136,0.9505,4370.0,4369.3,40.8]
[1756901900440,0.9505,4369.5,4369.4,1.29586039]
[1756901900639,0.9505,4369.5,4369.4,1.53136039]
[1756901901039,0.344,4369.5,4369.4,1.76586039]
[1756901901340,0.2366,4369.9,4369.8,0.4571]
[1756901901541,0.8105,4369.9,4369.8,1.53136039]
[1756901903339,1.39015251,4369.9,4369.8,1.53136039]
[1756901905638,1.39015251,4369.9,4369.8,1.07426039]
[1756901906043,1.39015251,4369.9,4369.8,1.29586039]
[1756901906644,1.39015251,4369.9,4369.8,1.53136039]
[1756901908141,1.39015251,4369.9,4369.8,1.29586039]
[1756901908549,1.39015251,4369.9,4369.8,1.07426039]
[1756901909246,1.39015251,4369.9,4369.8,1.29586039]
[1756901910348,0.92365251,4369.9,4369.8,1.76586039]
[1756901910541,0.695,4370.1,4370.0,0.4571]
[1756901910741,1.39032679,4370.1,4370.0,0.4571]
[1756901910935,1.39032679,4370.1,4369.3,40.8]
[1756901910936,0.6065,4369.5,4369.4,1.07426039]
[1756901911650,0.9505,4369.5,4369.4,1.07426039]
[1756901913545,0.9505,4369.5,4369.4,1.29586039]
[1756901915347,0.9505,4369.5,4369.4,1.53136039]
[1756901916252,0.9505,4369.5,4369.4,1.29586039]
[1756901916749,0.8105,4369.2,4369.1,1.07426039]
[1756901916950,0.8105,4369.2,4369.1,1.29586039]
[1756901917349,0.8105,4369.2,4369.1,1.53136039]
[1756901917852,0.8105,4369.2,4369.1,1.29586039]
[1756901918153,0.8105,4368.8,4368.7,0.4571]
[1756901918351,0.344,4368.8,4368.7,1.76586039]
[1756901920154,0.5806,4368.8,4368.7,1.76586039]
[1756901920360,0.8105,4368.8,4368.7,1.53136039]
[1756901923051,0.8105,4368.8,4368.7,1.29586039]
[1756901923361,0.5501,4368.4,4368.3,1.07426039]
[1756901923552,0.7725,4368.4,4368.3,1.07426039]
[1756901928760,0.7725,4368.4,4368.3,1.29606039]
[1756901929258,0.3249,4368.4,4368.3,1.75176039]
[1756901929847,0.5473,4368.4,4368.3,1.75176039]
[1756901930052,0.5473,4368.4,4368.3,1.52976039]
[1756901930254,0.7725,4368.4,4368.3,1.52976039]
[1756901934062,0.5473,4368.4,4368.3,1.75176039]
[1756901934364,0.7725,4368.4,4368.3,1.29606039]
[1756901934756,0.7725,4368.4,4367.7,41.032]
[1756901934757,0.3249,4368.3,4367.7,40.8]
[1756901935062,0.1344,4368.5,4367.9,1.75176039]
[1756901935063,0.6817,4368.0,4367.9,1.75176039]
[1756901935763,0.6817,4368.0,4367.9,1.52976039]
[1756901936364,0.9069,4368.0,4367.9,1.52976039]
[1756901937557,0.9069,4368.0,4367.9,1.33616542]
[1756901937867,0.1144,4368.2,4367.9,2.43883084]
[1756901938165,0.4393,4368.2,4368.1,0.6775]
[1756901938567,0.3249,4368.2,4368.1,0.6775]
[1756901938959,0.5473,4368.2,4368.1,0.6775]
[1756901939161,0.5473,4368.2,4368.1,0.4555]
[1756901939665,0.5473,4368.2,4368.1,0.6775]
[1756901940370,0.5473,4368.2,4368.1,0.4555]
[1756901940570,0.7725,4368.2,4368.1,0.4555]
[1756901941066,0.1344,4368.0,4367.6,0.232]
[1756901941267,0.1344,4368.0,4367.6,0.4555]
[1756901941268,0.5473,4367.7,4367.6,0.4555]
[1756901941570,0.7725,4367.7,4367.6,0.4555]
[1756901942369,0.7725,4367.7,4367.6,1.33616542]
[1756901944570,0.7725,4367.7,4367.6,0.2218]
[1756901944869,0.7725,4367.7,4367.6,1.10246542]
[1756901946772,0.7725,4367.7,4367.6,0.88066542]
[1756901949672,0.7725,4367.7,4367.6,1.10246542]
[1756901949868,0.7725,4367.7,4367.6,1.33616542]
[1756901951567,0.7725,4367.7,4367.6,0.4555]
[1756901951767,0.7725,4367.7,4367.6,1.33616542]
[1756901952573,0.3249,4367.7,4367.6,1.54596542]
[1756901952772,0.9034965,4367.7,4367.6,1.54596542]
[1756901952966,0.3249,4367.7,4367.6,1.54596542]
[1756901953367,0.57866591,4367.7,4367.6,1.54596542]
[1756901953568,0.1144,4368.4,4368.0,0.2098]
[1756901953865,0.6813,4368.4,4368.3,1.32146542]
[1756901954065,1.145608,4368.4,4368.3,1.32146542]
[1756901954876,0.578708,4368.4,4368.3,1.53126542]
[1756901955273,0.922208,4368.4,4368.3,1.53126542]
[1756901955871,0.578708,4368.4,4368.3,1.76018542]
[1756901956074,0.1144,4368.6,4368.3,1.55038542]
[1756901956270,0.57888601,4368.5,4368.4,0.6506]
[1756901956772,0.1144,4368.6,4368.5,0.1229]
[1756901956965,0.3435,4369.1,4368.5,0.5637]
[1756901957272,0.92221977,4369.0,4368.9,1.53126542]
[1756901957871,0.57871977,4369.0,4368.9,1.53126542]
[1756901958071,0.2234,4369.1,4369.0,0.6506]
[1756901958383,0.7906,4369.1,4369.0,0.4408]
[1756901958575,0.926,4369.0,4368.9,1.09286542]
[1756901959578,0.7023,4369.0,4368.9,1.53126542]
[1756901959776,0.4789,4369.0,4368.9,1.53126542]
[1756901959972,0.4789,4369.0,4368.9,1.32146542]
[1756901959973,0.926,4369.0,4368.9,1.32146542]
[1756901963681,0.7023,4369.0,4368.9,1.53126542]
[1756901964378,0.1144,4369.2,4369.1,0.6506]
[1756901964580,0.3435,4369.5,4369.1,0.6506]
[1756901964581,0.3435,4369.5,4369.1,1.76014542]
[1756901964776,0.3435,4369.5,4369.4,1.32146542]
[1756901964981,0.3435,4369.5,4369.4,1.53126542]
[1756901965279,0.3435,4369.5,4369.4,0.6506]
[1756901965478,0.3435,4369.5,4369.4,1.53126542]
[1756901968479,0.1144,4369.7,4369.6,0.4408]
[1756901968480,0.4579,4369.7,4369.6,0.4408]
[1756901968787,0.3435,4369.7,4369.6,0.6506]
[1756901969286,0.5669,4369.7,4369.6,0.6506]
[1756901970387,0.3435,4369.7,4369.6,0.6506]
[1756901971080,0.5669,4369.7,4369.6,0.6506]
[1756901973473,0.7906,4369.7,4369.6,0.4408]
[1756901974584,0.7906,4369.7,4369.6,0.2122]
[1756901974882,0.926,4369.0,4368.9,0.88066542]
[1756901975186,0.926,4369.0,4367.6,0.412]
[1756901975187,0.926,4368.5,4368.4,1.09286542]
[1756901975384,0.926,4368.5,4367.1,40.8]
[1756901975385,0.3435,4368.4,4367.4,0.2098]
[1756901975580,0.7906,4367.9,4367.8,1.09286542]
[1756901976483,0.3588,4367.5,4367.4,0.4408]
[1756901976679,0.3588,4367.5,4367.4,1.53126542]
[1756901976883,0.3588,4367.5,4367.4,1.32146542]
[1756901977080,0.7023,4367.5,4367.4,1.32146542]
[1756901977676,0.926,4367.5,4367.4,1.32146542]
[1756901977982,0.926,4367.5,4367.4,0.88066542]
[1756901978187,0.926,4367.5,4367.4,1.09286542]
[1756901979481,0.926,4367.5,4367.4,0.88066542]
[1756901980484,0.926,4367.5,4367.4,1.09286542]
[1756901980683,0.926,4367.5,4367.4,1.32146542]
[1756901981882,0.7023,4367.5,4367.4,1.51926542]
[1756901982282,0.7023,4367.5,4367.4,1.32146542]
[1756901982485,0.9159,4367.5,4367.4,0.88066542]
[1756901985085,0.9159,4367.5,4367.4,1.09116542]
[1756901985481,0.9159,4367.5,4367.4,0.88066542]
[1756901985885,0.7023,4367.5,4367.4,1.51406542]
[1756901989784,0.7023,4367.5,4367.4,1.31626542]
[1756901989985,0.9159,4367.5,4367.4,1.31626542]
[1756901990584,0.1144,4367.7,4367.4,1.51406542]
[1756901990791,0.3383,4367.6,4367.5,0.6334]
[1756901991678,0.1144,4367.7,4367.6,0.1978]
[1756901991885,0.3383,4367.9,4367.6,0.6334]
[1756901992185,0.6967,4368.0,4367.9,0.4356]
[1756901993889,0.9103,4368.0,4367.9,0.4356]
[1756901999196,0.9103,4368.0,4367.9,0.2105]
[1756902000396,0.3383,4367.9,4367.7,1.07581195]
[1756902000595,0.7749,4367.8,4367.7,1.28631195]
[1756902000790,0.7749,4367.8,4367.7,1.51141195]
[1756902001684,0.3383,4367.8,4367.7,1.70921195]
[1756902001891,0.3383,4368.0,4367.9,0.4356]
[1756902002198,0.3383,4368.0,4367.9,0.6334]
[1756902002395,0.3383,4368.0,4367.9,0.86234]
[1756902002697,0.3383,4368.0,4367.9,0.6334]
[1756902002898,0.1144,4368.2,4368.1,0.4356]
[1756902003096,0.3383,4368.7,4368.1,1.51141195]
[1756902003399,0.3383,4368.7,4368.6,1.70921195]
[1756902003789,0.5613,4368.7,4368.6,1.70921195]
[1756902004400,0.5613,4368.7,4368.6,1.51141195]
[1756902004891,0.7749,4368.7,4368.6,0.2105]
[1756902005094,0.4366,4368.3,4368.2,0.2105]
[1756902005398,0.4366,4368.3,4366.8,1.03019]
[1756902005399,0.4366,4368.3,4368.1,1.07581195]
[1756902005601,0.7749,4368.2,4368.1,1.28631195]
[1756902006799,0.5613,4368.2,4368.1,1.70921195]
[1756902007403,0.5613,4368.2,4368.1,1.51141195]
[1756902007795,0.7749,4368.2,4368.1,1.51141195]
[1756902008998,0.3383,4368.2,4368.1,1.70921195]
[1756902009791,0.3383,4368.8,4368.2,0.1872]
[1756902009997,0.7749,4368.8,4368.7,1.07581195]
[1756902010196,0.4366,4368.3,4368.2,0.2105]
[1756902010504,0.7749,4368.3,4368.2,0.2105]
[1756902011794,0.41,4367.5,4367.4,1.07581195]
[1756902011999,0.8637,4367.5,4367.4,1.30021195]
[1756902012303,0.8637,4367.5,4367.4,1.51691195]
[1756902012505,0.8637,4367.5,4367.4,1.70291195]
[1756902012805,0.4537,4367.5,4367.4,1.70291195]
[1756902012995,0.6591,4367.5,4367.4,1.70291195]
[1756902014004,0.4537,4367.5,4367.4,1.70291195]
[1756902014405,0.6591,4367.5,4367.4,1.70291195]
[1756902016107,0.8637,4367.5,4367.4,1.51691195]
[1756902016507,0.8637,4367.5,4367.4,1.30021195]
[1756902017798,0.6591,4367.5,4367.4,1.51691195]
[1756902018103,0.8637,4367.5,4367.4,1.51691195]
[1756902019612,0.4537,4367.5,4367.4,1.70291195]
[1756902022116,0.6591,4367.5,4367.4,1.70291195]
[1756902022308,0.144,4368.6,4367.4,1.70291195]
[1756902022509,0.1919,4369.9,4369.2,0.186]
[1756902022806,0.1919,4369.9,4369.8,2.1516239]
[1756902022807,0.6019,4369.9,4369.8,2.1516239]
[1756902023002,1.17689539,4369.9,4369.8,1.07581195]
[1756902023207,1.2138354,4369.9,4368.0,0.3229]
[1756902023510,0.1249,4368.5,4368.1,1.51691195]
[1756902023712,0.3295,4369.0,4368.9,0.2244]
[1756902023911,0.2054,4369.2,4369.1,0.7764]
[1756902024111,0.043,4369.5,4369.2,0.3353]
[1756902024411,0.0379,4371.5,4369.6,0.5597]
[1756902024614,0.0379,4371.5,4369.5,0.1347]
[1756902024615,0.0379,4371.5,4371.1,1.07581195]
[1756902024815,33.227,4371.2,4371.1,1.07581195]
[1756902025013,33.45577,4371.2,4371.1,1.07581195]
[1756902026608,33.20777,4371.2,4371.1,1.07581195]
[1756902026906,33.226,4371.2,4370.5,0.1347]
[1756902028009,32.979,4371.2,4370.6,0.3353]
[1756902028216,0.247,4371.1,4370.6,0.3353]
[1756902028407,0.247,4371.1,4370.5,0.1347]